bitfinex-derivatives/quotes_BNBF0:USTF0_20250603
["timestamp","ask_amount","ask_price","bid_price","bid_amount"]
[1748986384438,0.99554788,659.5,658.96,0.30350855]
[1748986384639,0.99554788,659.49,658.96,0.30350855]
[1748986384840,0.99554788,659.48,658.96,0.30350855]
[1748986385039,0.99554788,659.47,658.96,0.30350855]
[1748986385239,0.99554788,659.46,658.96,0.30350855]
[1748986385538,1.11539832,659.53,658.96,0.30350855]
[1748986385539,0.99554788,659.45,658.96,0.30350855]
[1748986385739,0.99554788,659.44,658.96,0.30350855]
[1748986385940,0.99554788,659.43,658.96,0.30350855]
[1748986386137,0.99554788,659.42,658.96,0.30350855]
[1748986386341,0.99554788,659.41,658.96,0.30350855]
[1748986386538,0.99554788,659.4,658.96,0.30350855]
[1748986386739,0.99554788,659.39,658.96,0.30350855]
[1748986387036,1.11539832,659.55,658.96,0.30350855]
[1748986387037,0.99554788,659.38,658.96,0.30350855]
[1748986387241,0.99554788,659.37,658.96,0.30350855]
[1748986387443,3.75169833,660.28,658.96,0.30350855]
[1748986387839,0.30238887,661.4,658.96,0.30350855]
[1748986388240,1.11297016,659.56,658.96,0.30350855]
[1748986388444,0.99292705,659.55,658.96,0.30350855]
[1748986388639,0.99292705,659.54,658.96,0.30350855]
[1748986388843,0.99292705,659.53,658.96,0.30350855]
[1748986389147,0.99302294,659.52,658.96,0.30350855]
[1748986389342,0.99302294,659.51,658.96,0.30350855]
[1748986389549,0.99302294,659.5,658.96,0.30350855]
[1748986389749,0.99302294,659.49,658.96,0.30350855]
[1748986389948,0.99302294,659.48,658.96,0.30350855]
[1748986390249,0.99302294,659.47,658.96,0.30350855]
[1748986390549,0.99302294,659.46,658.96,0.30350855]
[1748986390748,0.99302294,659.45,658.96,0.30350855]
[1748986390947,1.11321739,659.56,658.96,0.30350855]
[1748986390948,0.99302294,659.44,658.96,0.30350855]
[1748986391141,0.99302294,659.43,658.96,0.30350855]
[1748986391346,0.99302294,659.42,658.96,0.30350855]
[1748986391546,0.99302294,659.41,658.96,0.30350855]
[1748986391746,0.99302294,659.4,658.96,0.30350855]
[1748986391946,0.99302294,659.39,658.96,0.30350855]
[1748986392246,0.99302294,659.38,658.96,0.30350855]
[1748986392455,0.99302294,659.37,658.96,0.30350855]
[1748986392746,0.99302294,659.36,658.96,0.30350855]
[1748986392949,0.9929232,659.35,658.96,0.30350855]
[1748986393151,0.99292609,659.34,658.96,0.30350855]
[1748986393344,1.11332571,659.54,658.96,0.30350855]
[1748986393544,0.99273434,659.53,658.96,0.30350855]
[1748986393748,0.99273434,659.52,658.96,0.30350855]
[1748986393948,0.99273434,659.51,658.96,0.30350855]
[1748986394149,0.99273434,659.5,658.96,0.30350855]
[1748986394347,0.99273434,659.49,658.96,0.30350855]
[1748986394545,0.99273434,659.48,658.96,0.30350855]
[1748986394850,1.48396021,659.64,658.96,0.30350855]
[1748986394851,0.99273434,659.47,658.96,0.30350855]
[1748986395050,0.99273434,659.46,658.96,0.30350855]
[1748986395353,0.99273434,659.45,658.96,0.30350855]
[1748986395649,0.99273434,659.44,658.96,0.30350855]
[1748986395852,0.99273434,659.43,658.96,0.30350855]
[1748986396050,0.99273434,659.42,658.96,0.30350855]
[1748986396246,0.99273434,659.41,658.96,0.30350855]
[1748986396453,0.99273434,659.4,658.96,0.30350855]
[1748986396648,0.99273434,659.39,658.96,0.30350855]
[1748986396847,1.11332571,659.53,658.96,0.30350855]
[1748986396848,0.99273434,659.38,658.96,0.30350855]
[1748986397051,0.99341491,659.37,658.96,0.30350855]
[1748986397249,0.99341491,659.36,658.96,0.30350855]
[1748986397450,0.99341491,659.35,658.96,0.30350855]
[1748986397650,0.99341491,659.34,658.96,0.30350855]
[1748986397850,1.11359703,659.53,658.96,0.30350855]
[1748986398049,0.99348976,659.52,658.96,0.30350855]
[1748986398354,0.99348976,659.51,658.96,0.30350855]
[1748986398549,0.99348976,659.5,658.96,0.30350855]
[1748986398748,0.99348976,659.49,658.96,0.30350855]
[1748986398954,0.99348976,659.48,658.96,0.30350855]
[1748986399153,0.99348976,659.47,658.96,0.30350855]
[1748986399353,0.99348976,659.46,658.96,0.30350855]
[1748986399554,0.99348976,659.45,658.96,0.30350855]
[1748986399851,0.99348976,659.44,658.96,0.30350855]
[1748986400053,0.99348976,659.43,658.96,0.30350855]
[1748986400251,0.99348976,659.42,658.96,0.30350855]
[1748986400451,0.99348976,659.41,658.96,0.30350855]
[1748986400654,0.99348976,659.4,658.96,0.30350855]
[1748986400857,0.99371622,659.39,658.96,0.30350855]
[1748986401052,0.99371622,659.38,658.96,0.30350855]
[1748986401253,0.99371622,659.37,658.96,0.30350855]
[1748986401453,0.99371622,659.36,658.96,0.30350855]
[1748986401655,0.99371622,659.35,658.96,0.30350855]
[1748986401855,1.11393478,659.57,658.96,0.30350855]
[1748986402051,0.99384645,659.56,658.96,0.30350855]
[1748986402257,0.99384645,659.55,658.96,0.30350855]
[1748986402457,0.99384645,659.54,658.96,0.30350855]
[1748986402657,1.11393478,659.57,658.96,0.30350855]
[1748986402658,0.99384645,659.53,658.96,0.30350855]
[1748986402854,0.99384645,659.52,658.96,0.30350855]
[1748986403056,1.48396021,659.68,658.96,0.30350855]
[1748986403057,0.99384645,659.51,658.96,0.30350855]
[1748986403252,0.99384645,659.5,658.96,0.30350855]
[1748986403453,0.99384645,659.49,658.96,0.30350855]
[1748986403656,0.99384645,659.48,658.96,0.78149326]
[1748986403857,0.99384645,659.47,658.96,0.78149326]
[1748986404053,0.99384645,659.46,658.96,0.78149326]
[1748986404358,0.99384645,659.45,658.97,0.47798471]
[1748986404559,0.99384645,659.44,658.98,0.30349934]
[1748986404758,0.99413629,659.43,658.98,0.30349934]
[1748986405054,0.99413629,659.42,659.0,0.47798471]
[1748986405258,0.99413629,659.41,659.03,0.47798471]
[1748986405458,0.99413629,659.4,659.04,0.30347171]
[1748986405660,3.70990054,660.28,659.11,0.47798471]
[1748986405661,1.11432207,659.63,659.11,0.47798471]
[1748986405861,0.99438181,659.62,659.14,0.47798471]
[1748986406158,3.70990054,660.36,659.17,0.47798471]
[1748986406159,0.99438181,659.61,659.17,0.47798471]
[1748986406356,0.99438181,659.6,659.17,0.47798471]
[1748986406555,0.99438181,659.59,659.17,0.47798471]
[1748986406757,0.99438181,659.58,659.22,0.47798471]
[1748986407058,0.99438181,659.57,659.22,0.47798471]
[1748986407259,0.99438181,659.56,659.22,0.47798471]
[1748986407452,0.99438181,659.55,659.22,0.47798471]
[1748986407653,0.99438181,659.54,659.3,0.47798471]
[1748986407853,0.99438181,659.53,659.3,0.47798471]
[1748986408057,1.11432207,659.73,659.35,0.47798471]
[1748986408260,0.99517212,659.72,659.3,0.47798471]
[1748986408455,0.99531221,659.71,659.3,0.47798471]
[1748986408655,0.99531221,659.7,659.33,0.47798471]
[1748986408858,0.99531221,659.69,659.43,0.47798471]
[1748986409055,0.99531221,659.68,659.43,0.47798471]
[1748986409259,0.99531221,659.67,659.41,0.47798471]
[1748986409461,0.99531221,659.66,659.4,0.47798471]
[1748986409657,0.99531221,659.66,659.08,0.47798471]
[1748986409658,0.99531221,659.65,659.41,0.47798471]
[1748986409859,0.99531221,659.64,659.41,0.47798471]
[1748986410162,0.99531221,659.63,659.41,0.47798471]
[1748986410363,0.99531221,659.62,659.39,0.47798471]
[1748986410564,0.99531221,659.61,659.38,0.47798471]
[1748986410863,0.99531221,659.6,659.38,0.47798471]
[1748986411059,1.11533146,659.81,659.42,0.47798471]
[1748986411261,2.11323336,659.8,659.39,0.47798471]
[1748986411460,0.9979019,659.79,659.39,0.47798471]
[1748986411661,0.9979019,659.78,659.4,0.47798471]
[1748986411858,0.9979019,659.77,659.39,0.47798471]
[1748986412062,0.9979019,659.76,659.39,0.47798471]
[1748986412257,1.11533146,659.8,659.37,0.47798471]
[1748986412459,0.99815109,659.79,659.37,0.47798471]
[1748986412658,0.99815109,659.78,659.36,0.47798471]
[1748986412864,0.99815109,659.77,659.35,0.47798471]
[1748986413066,0.99815109,659.76,659.35,0.47798471]
[1748986413366,0.99815109,659.75,659.33,0.47798471]
[1748986413563,0.99815109,659.74,659.33,0.47798471]
[1748986413763,0.99815109,659.73,659.33,0.47798471]
[1748986413963,0.99815109,659.72,659.33,0.47798471]
[1748986414260,0.99815109,659.71,659.3,0.47798471]
[1748986414464,0.99815109,659.7,659.3,0.78133675]
[1748986414666,0.99815109,659.69,659.3,0.30335204]
[1748986414965,0.99815109,659.68,659.3,0.30335204]
[1748986415166,0.99815109,659.67,659.3,0.78133675]
[1748986415465,0.99815109,659.66,659.3,0.30335204]
[1748986415661,0.99815109,659.65,659.3,0.30335204]
[1748986415865,0.99815109,659.64,659.3,0.30335204]
[1748986416066,0.99815109,659.63,659.3,0.30335204]
[1748986416258,0.99995057,659.62,659.3,0.30335204]
[1748986416463,0.99995057,659.61,659.3,0.30335204]
[1748986416665,0.99995057,659.6,659.3,0.30335204]
[1748986416859,0.99995057,659.59,659.3,0.30335204]
[1748986417063,1.11743526,659.79,659.3,0.30335204]
[1748986417263,2.11759035,659.78,659.3,0.30335204]
[1748986417464,1.00015509,659.77,659.3,0.30335204]
[1748986417662,1.00015509,659.76,659.3,0.30335204]
[1748986417966,1.00015509,659.75,659.3,0.30335204]
[1748986418266,1.00015509,659.74,659.3,0.30335204]
[1748986418560,1.00015509,659.73,659.3,0.30335204]
[1748986418761,1.00015509,659.72,659.3,0.30335204]
[1748986418958,1.00015509,659.71,659.3,0.30335204]
[1748986419162,1.00015509,659.7,659.3,0.30335204]
[1748986419360,1.00015509,659.69,659.3,0.30335204]
[1748986419560,1.48396021,659.89,659.3,0.30335204]
[1748986419861,1.11836443,659.78,659.3,0.30335204]
[1748986420065,1.48396021,659.88,659.3,0.30335204]
[1748986420260,1.11850671,659.78,659.3,0.30335204]
[1748986420461,1.00127252,659.77,659.3,0.30335204]
[1748986420660,1.00127252,659.76,659.3,0.30335204]
[1748986420866,1.00127252,659.75,659.3,0.30335204]
[1748986421060,1.00127252,659.74,659.3,0.30335204]
[1748986421265,1.00127252,659.73,659.3,0.30335204]
[1748986421463,1.00127252,659.72,659.3,0.30335204]
[1748986421663,1.00127252,659.71,659.3,0.30335204]
[1748986421860,1.00127252,659.7,659.3,0.30335204]
[1748986422062,1.00127252,659.69,659.3,0.30335204]
[1748986422265,1.00127252,659.68,659.3,0.30335204]
[1748986422466,1.00127252,659.67,659.3,0.30335204]
[1748986422664,1.00127252,659.66,659.3,0.30335204]
[1748986422864,1.00127252,659.65,659.3,0.30335204]
[1748986423063,1.00127252,659.64,659.3,0.30335204]
[1748986423265,1.00127252,659.63,659.3,0.30335204]
[1748986423465,1.00127252,659.62,659.3,0.30335204]
[1748986423766,1.00127252,659.61,659.3,0.30335204]
[1748986424066,1.00262842,659.6,659.3,0.30335204]
[1748986424262,1.00262842,659.59,659.3,0.30335204]
[1748986424462,1.12004719,659.8,659.3,0.30335204]
[1748986424463,1.00262842,659.58,659.3,0.30335204]
[1748986424668,1.00262842,659.57,659.3,0.30335204]
[1748986424866,1.00262842,659.56,659.3,0.30335204]
[1748986425066,1.00262842,659.55,659.3,0.30335204]
[1748986425271,1.00262842,659.54,659.3,0.30335204]
[1748986425472,1.00262842,659.53,659.3,0.30335204]
[1748986425673,1.00262842,659.52,659.3,0.30335204]
[1748986425871,1.00262842,659.51,659.3,0.30335204]
[1748986426072,1.00262842,659.5,659.3,0.30335204]
[1748986426286,1.00262842,659.49,659.3,0.30335204]
[1748986426473,1.00262842,659.48,659.3,0.30335204]
[1748986426672,1.00262842,659.47,659.3,0.30335204]
[1748986426871,1.00262842,659.46,659.3,0.30335204]
[1748986427074,1.00262842,659.45,659.3,0.30335204]
[1748986427267,1.12004719,659.75,659.3,0.30335204]
[1748986427467,2.12334031,659.74,659.3,0.30335204]
[1748986427773,1.00329312,659.73,659.3,0.30335204]
[1748986427965,1.00356315,659.72,659.3,0.30335204]
[1748986428169,1.00356315,659.71,659.3,0.30335204]
[1748986428371,1.1213669,659.74,659.3,0.30335204]
[1748986428372,1.00356315,659.7,659.3,0.30335204]
[1748986428572,1.00356315,659.69,659.3,0.30335204]
[1748986428772,1.00356315,659.68,659.3,0.30335204]
[1748986428968,1.00356315,659.67,659.3,0.30335204]
[1748986429168,1.00356315,659.66,659.3,0.30335204]
[1748986429471,1.00356315,659.65,659.3,0.30335204]
[1748986429674,1.00356315,659.64,659.3,0.30335204]
[1748986429874,1.00356315,659.63,659.3,0.30335204]
[1748986430172,1.00356315,659.62,659.3,0.30335204]
[1748986430373,1.00356315,659.61,659.3,0.30335204]
[1748986430674,1.00356315,659.6,659.3,0.30335204]
[1748986430867,1.00356315,659.59,659.3,0.30335204]
[1748986431068,1.00356315,659.58,659.3,0.30335204]
[1748986431273,1.00356315,659.57,659.3,0.30335204]
[1748986431574,1.00356315,659.56,659.3,0.30335204]
[1748986431875,1.00356315,659.55,659.3,0.30335204]
[1748986432174,1.00356315,659.54,659.3,0.30335204]
[1748986432370,1.00356315,659.53,659.3,0.30335204]
[1748986432576,1.00356315,659.52,659.3,0.30335204]
[1748986432775,1.00356315,659.51,659.3,0.30335204]
[1748986432976,1.00356315,659.5,659.3,0.30335204]
[1748986433274,1.1213669,659.71,659.3,0.30335204]
[1748986433275,1.00356315,659.49,659.3,0.30335204]
[1748986433474,1.00356315,659.48,659.3,0.30335204]
[1748986433671,1.00356315,659.47,659.3,0.30335204]
[1748986433875,1.00356315,659.46,659.3,0.30335204]
[1748986434072,1.00356315,659.45,659.3,0.30335204]
[1748986434379,1.00356315,659.44,659.3,0.30335204]
[1748986434576,1.00356315,659.43,659.3,0.30335204]
[1748986434778,1.1213669,659.65,659.3,0.30335204]
[1748986434976,1.00547732,659.64,659.3,0.30335204]
[1748986435177,1.00547732,659.63,659.3,0.30335204]
[1748986435373,1.00547732,659.62,659.3,0.30335204]
[1748986435571,1.00547732,659.61,659.3,0.30335204]
[1748986435770,1.48396021,659.76,659.3,0.30335204]
[1748986435978,1.12343594,659.65,659.3,0.30335204]
[1748986436178,1.00546805,659.64,659.3,0.30335204]
[1748986436378,1.00546805,659.63,659.3,0.30335204]
[1748986436580,1.12343594,659.59,659.3,0.30335204]
[1748986436877,1.00546805,659.58,659.3,0.30335204]
[1748986437077,1.00546805,659.57,659.3,0.30335204]
[1748986437277,1.12343594,659.59,659.3,0.30335204]
[1748986437278,1.00546805,659.56,659.3,0.30335204]
[1748986437473,1.00546805,659.55,659.3,0.30335204]
[1748986437674,1.00546805,659.54,659.3,0.30335204]
[1748986437879,1.00546805,659.53,659.3,0.30335204]
[1748986438078,1.00546805,659.52,659.3,0.30335204]
[1748986438279,1.00546805,659.51,659.3,0.30335204]
[1748986438479,3.70990054,660.31,659.3,0.30335204]
[1748986438480,1.00546805,659.5,659.3,0.30335204]
[1748986438674,1.00546805,659.49,659.3,0.30335204]
[1748986438878,1.00546805,659.48,659.3,0.30335204]
[1748986439073,1.00546805,659.47,659.3,0.30335204]
[1748986439279,1.00546805,659.46,659.3,0.30335204]
[1748986439480,1.00546805,659.45,659.3,0.30335204]
[1748986439778,1.0053833,659.44,659.3,0.30335204]
[1748986439976,1.0053833,659.43,659.3,0.30335204]
[1748986440180,1.0053833,659.42,659.3,0.30335204]
[1748986440381,1.0053833,659.41,659.3,0.30335204]
[1748986440582,1.0053833,659.4,659.3,0.30335204]
[1748986440877,1.0053833,659.39,659.3,0.30335204]
[1748986441082,1.0053833,659.38,659.3,0.30335204]
[1748986441383,1.0053833,659.37,659.3,0.30335204]
[1748986441583,1.0053833,659.36,659.3,0.30335204]
[1748986441884,1.12312956,659.59,659.3,0.30335204]
[1748986442083,1.00566014,659.58,659.3,0.30335204]
[1748986442278,1.48396021,659.72,659.3,0.30335204]
[1748986442479,1.12309599,659.59,659.3,0.30335204]
[1748986442679,1.00567684,659.58,659.3,0.30335204]
[1748986442883,1.00567684,659.57,659.3,0.30335204]
[1748986443084,1.00567684,659.56,659.3,0.30335204]
[1748986443282,1.00567684,659.55,659.3,0.30335204]
[1748986443479,1.00567684,659.54,659.3,0.30335204]
[1748986443678,1.00567684,659.53,659.3,0.30335204]
[1748986443883,1.00567684,659.52,659.3,0.30335204]
[1748986444083,1.00567684,659.51,659.3,0.30335204]
[1748986444284,1.00567684,659.5,659.3,0.30335204]
[1748986444486,1.00567684,659.49,659.3,0.30335204]
[1748986444685,1.00567684,659.48,659.3,0.30335204]
[1748986444887,1.00567684,659.47,659.3,0.30335204]
[1748986445181,1.00567684,659.46,659.3,0.30335204]
[1748986445387,1.12309599,659.59,659.3,0.30335204]
[1748986445388,1.00567684,659.45,659.3,0.30335204]
[1748986445580,1.00567684,659.44,659.3,0.30335204]
[1748986445781,1.00567684,659.43,659.3,0.30335204]
[1748986445983,1.00567684,659.42,659.3,0.30335204]
[1748986446184,1.00567684,659.41,659.3,0.30335204]
[1748986446385,1.00541109,659.4,659.3,0.30335204]
[1748986446590,1.00541109,659.39,659.3,0.30335204]
[1748986446785,1.00541109,659.38,659.3,0.30335204]
[1748986447086,1.00541109,659.37,659.3,0.30335204]
[1748986447286,1.00541109,659.36,659.3,0.30335204]
[1748986447483,1.12334138,659.57,659.3,0.30335204]
[1748986447682,1.00556526,659.56,659.3,0.30335204]
[1748986447887,1.00556526,659.55,659.3,0.30335204]
[1748986448187,1.00556526,659.54,659.3,0.30335204]
[1748986448387,3.70990054,660.29,659.3,0.30335204]
[1748986448388,1.00556526,659.53,659.3,0.30335204]
[1748986448589,1.00556526,659.52,659.3,0.30335204]
[1748986448784,1.48396021,659.67,659.3,0.30335204]
[1748986448785,1.00556526,659.51,659.3,0.30335204]
[1748986448985,1.00556526,659.5,659.3,0.30335204]
[1748986449184,1.00556526,659.49,659.3,0.30335204]
[1748986449383,1.00556526,659.48,659.3,0.30335204]
[1748986449687,1.00556526,659.47,659.3,0.30335204]
[1748986449888,1.00556526,659.46,659.3,0.30335204]
[1748986450087,1.00556526,659.45,659.3,0.30335204]
[1748986450288,1.00533947,659.44,659.3,0.30335204]
[1748986450583,1.00533947,659.43,659.3,0.30335204]
[1748986450783,1.00533947,659.42,659.3,0.30335204]
[1748986450987,1.00533947,659.41,659.3,0.30335204]
[1748986451184,1.00533947,659.4,659.3,0.30335204]
[1748986451388,1.00533947,659.39,659.3,0.30335204]
[1748986451584,1.00533947,659.38,659.3,0.30335204]
[1748986451891,1.00533947,659.37,659.3,0.30335204]
[1748986452190,1.00533947,659.36,659.3,0.30335204]
[1748986452391,1.00533947,659.35,659.3,0.30335204]
[1748986452691,1.00533947,659.34,659.3,0.30335204]
[1748986452884,1.00533947,659.33,659.3,0.30335204]
[1748986453086,1.12368567,659.53,659.3,0.30335204]
[1748986453284,1.00531021,659.52,659.3,0.30335204]
[1748986453483,1.00531021,659.51,659.3,0.30335204]
[1748986453791,1.00531021,659.5,659.3,0.30335204]
[1748986453984,1.00531021,659.49,658.74,0.47798471]
[1748986454187,1.00531021,659.49,658.75,0.30360531]
[1748986454188,1.00499801,659.48,658.75,0.30360531]
[1748986454384,1.00499801,659.47,658.75,0.30360531]
[1748986454686,1.00499801,659.46,658.75,0.30360531]
[1748986454988,1.00499801,659.45,658.75,0.30360531]
[1748986455188,1.00499801,659.44,658.75,0.30360531]
[1748986455389,1.00499801,659.43,658.75,0.30360531]
[1748986455588,1.12387483,659.47,658.75,0.30360531]
[1748986455589,1.00499801,659.42,658.75,0.30360531]
[1748986455788,1.00499801,659.41,658.75,0.30360531]
[1748986456085,1.00499801,659.4,658.75,0.30360531]
[1748986456289,1.00499801,659.39,658.75,0.30360531]
[1748986456492,1.00499801,659.38,658.75,0.30360531]
[1748986456789,1.00499801,659.37,658.75,0.30360531]
[1748986456989,1.00499801,659.36,658.75,0.30360531]
[1748986457190,1.12387483,659.43,658.75,0.30360531]
[1748986457191,1.00499801,659.35,658.75,0.30360531]
[1748986457385,1.00499801,659.34,658.75,0.30360531]
[1748986457588,1.00499801,659.33,658.75,0.30360531]
[1748986457789,1.00499801,659.32,658.75,0.30360531]
[1748986457985,1.00499506,659.31,658.75,0.30360531]
[1748986458185,1.00499506,659.3,658.75,0.30360531]
[1748986458384,1.00499506,659.29,658.75,0.30360531]
[1748986458588,1.00499506,659.28,658.75,0.30360531]
[1748986458789,1.00499506,659.27,658.75,0.30360531]
[1748986458990,1.00499506,659.26,658.75,0.30360531]
[1748986459189,3.70990054,660.19,658.75,0.30360531]
[1748986459190,1.00499506,659.25,658.75,0.30360531]
[1748986459386,1.00499506,659.24,658.75,0.30360531]
[1748986459692,1.00499506,659.23,658.75,0.30360531]
[1748986459892,1.00499506,659.22,658.75,0.30360531]
[1748986460092,1.00499506,659.21,658.75,0.30360531]
[1748986460295,1.00499506,659.2,658.75,0.30360531]
[1748986460493,1.00499506,659.19,658.75,0.30360531]
[1748986460693,1.00499506,659.18,658.75,0.30360531]
[1748986460990,1.00499506,659.17,658.75,0.30360531]
[1748986461191,1.00499506,659.16,658.75,0.30360531]
[1748986461391,1.00499506,659.15,658.75,0.30360531]
[1748986461592,1.48396021,659.5,658.75,0.30360531]
[1748986461792,1.12331038,659.38,658.75,0.30360531]
[1748986462092,1.00397441,659.37,658.75,0.30360531]
[1748986462293,1.00397441,659.36,658.75,0.30360531]
[1748986462594,1.00397441,659.35,658.75,0.30360531]
[1748986462793,1.12331038,659.38,658.75,0.30360531]
[1748986462794,1.00397441,659.34,658.75,0.30360531]
[1748986462988,1.00397441,659.33,658.75,0.30360531]
[1748986463190,1.00397441,659.32,658.75,0.30360531]
[1748986463388,1.00397441,659.31,658.75,0.30360531]
[1748986463693,1.00397441,659.3,658.75,0.30360531]
[1748986463893,1.00397441,659.29,658.75,0.30360531]
[1748986464094,3.70990054,660.12,658.75,0.30360531]
[1748986464095,1.00397441,659.28,658.75,0.30360531]
[1748986464394,1.00397441,659.27,658.75,0.30360531]
[1748986464594,1.00397441,659.26,658.75,0.30360531]
[1748986464795,1.00397441,659.25,658.75,0.30360531]
[1748986464994,1.00397441,659.24,658.75,0.30360531]
[1748986465194,1.00397441,659.23,658.75,0.30360531]
[1748986465388,1.00397441,659.22,658.75,0.30360531]
[1748986465589,1.0032396,659.21,658.75,0.30360531]
[1748986465789,1.0032396,659.2,658.75,0.30360531]
[1748986465988,1.0032396,659.19,658.75,0.30360531]
[1748986466189,1.0032396,659.18,658.75,0.30360531]
[1748986466389,1.0032396,659.17,658.75,0.30360531]
[1748986466593,1.0032396,659.16,658.75,0.30360531]
[1748986466793,1.0032396,659.15,658.75,0.30360531]
[1748986466990,1.0032396,659.14,658.75,0.30360531]
[1748986467191,1.0032396,659.13,658.75,0.30360531]
[1748986467392,1.12251498,659.34,658.75,0.30360531]
[1748986467595,1.00277612,659.33,658.75,0.30360531]
[1748986467795,1.00277612,659.32,658.75,0.30360531]
[1748986468090,1.00277612,659.31,658.75,0.30360531]
[1748986468291,1.00277612,659.3,658.75,0.30360531]
[1748986468490,1.00277612,659.29,658.75,0.30360531]
[1748986468696,1.00277612,659.28,658.75,0.30360531]
[1748986468995,1.00277612,659.27,658.75,0.30360531]
[1748986469196,1.00277612,659.26,658.75,0.30360531]
[1748986469395,1.00277612,659.25,658.75,0.30360531]
[1748986469592,1.00277612,659.24,658.75,0.30360531]
[1748986469794,1.00277612,659.23,658.75,0.30360531]
[1748986469991,1.00277612,659.22,658.75,0.30360531]
[1748986470195,1.00277612,659.21,658.75,0.30360531]
[1748986470396,1.00277612,659.2,658.75,0.30360531]
[1748986470590,1.00277612,659.19,658.75,0.30360531]
[1748986470896,1.00277612,659.18,658.75,0.30360531]
[1748986471093,1.00277612,659.17,658.75,0.30360531]
[1748986471297,1.00277612,659.16,658.75,0.30360531]
[1748986471493,1.12251498,659.4,658.75,0.30360531]
[1748986471697,1.0022138,659.39,658.75,0.30360531]
[1748986471997,1.0022138,659.38,658.75,0.30360531]
[1748986472198,1.0022138,659.37,658.75,0.30360531]
[1748986472398,1.0022138,659.36,658.75,0.30360531]
[1748986472594,1.0022138,659.35,658.75,0.30360531]
[1748986472791,1.0022138,659.34,658.75,0.30360531]
[1748986473096,1.0022138,659.33,658.75,0.30360531]
[1748986473293,1.0022138,659.32,658.75,0.30360531]
[1748986473495,1.00212056,659.31,658.75,0.30360531]
[1748986473694,1.00212056,659.3,658.75,0.30360531]
[1748986473894,1.00212056,659.29,658.75,0.30360531]
[1748986474098,1.00212056,659.28,658.75,0.30360531]
[1748986474297,1.00212056,659.27,658.75,0.30360531]
[1748986474492,1.00212056,659.26,658.75,0.30360531]
[1748986474697,1.00212056,659.25,658.75,0.30360531]
[1748986474999,1.00212056,659.24,658.75,0.30360531]
[1748986475204,1.00212056,659.23,658.75,0.30360531]
[1748986475396,1.00212056,659.22,658.75,0.30360531]
[1748986475597,1.00212056,659.21,658.75,0.30360531]
[1748986475797,1.00212056,659.2,658.75,0.30360531]
[1748986475997,1.00212056,659.19,658.75,0.30360531]
[1748986476197,1.00212056,659.18,658.75,0.30360531]
[1748986476499,1.00212056,659.17,658.75,0.30360531]
[1748986476693,1.00212056,659.16,658.75,0.30360531]
[1748986476893,1.00212056,659.15,658.75,0.30360531]
[1748986477098,1.00212056,659.14,658.75,0.30360531]
[1748986477400,1.00226146,659.13,658.75,0.30360531]
[1748986477599,1.00226146,659.12,658.75,0.30360531]
[1748986477811,1.12136037,659.37,658.75,0.30360531]
[1748986477998,1.00268279,659.36,658.75,0.30360531]
[1748986478197,1.00268279,659.35,658.75,0.30360531]
[1748986478399,1.00268279,659.34,658.75,0.30360531]
[1748986478699,1.00268279,659.33,658.75,0.30360531]
[1748986478902,1.00268279,659.32,658.75,0.30360531]
[1748986479099,1.00268279,659.31,658.75,0.30360531]
[1748986479399,1.00268279,659.3,658.75,0.30360531]
[1748986479601,1.00268279,659.29,658.75,0.30360531]
[1748986479795,1.00219582,659.28,658.75,0.30360531]
[1748986480096,1.1213873,659.37,658.75,0.30360531]
[1748986480097,1.00219582,659.27,658.75,0.30360531]
[1748986480403,1.00219582,659.26,658.75,0.30360531]
[1748986480701,1.00219582,659.25,658.75,0.30360531]
[1748986480893,1.00219582,659.24,658.75,0.30360531]
[1748986481096,1.00219582,659.23,658.75,0.30360531]
[1748986481301,1.00219582,659.22,658.75,0.30360531]
[1748986481502,1.00219582,659.21,658.75,0.30360531]
[1748986481703,1.00219582,659.2,658.75,0.30360531]
[1748986481895,1.00219582,659.19,658.75,0.30360531]
[1748986482094,1.1213873,659.35,658.75,0.30360531]
[1748986482095,1.00219582,659.18,658.75,0.30360531]
[1748986482299,1.00219582,659.17,658.75,0.30360531]
[1748986482498,1.00219582,659.16,658.75,0.30360531]
[1748986482702,1.00219582,659.15,658.75,0.30360531]
[1748986482898,1.00219582,659.14,658.75,0.30360531]
[1748986483102,1.00219582,659.13,658.75,0.30360531]
[1748986483402,1.00219582,659.12,658.75,0.30360531]
[1748986483602,1.1213873,659.35,658.75,0.30360531]
[1748986483802,1.0029236,659.34,658.75,0.30360531]
[1748986484005,1.0029236,659.33,658.75,0.30360531]
[1748986484199,1.0029236,659.32,658.75,0.30360531]
[1748986484403,1.0029236,659.31,658.75,0.30360531]
[1748986484605,1.0029236,659.3,658.75,0.30360531]
[1748986484805,1.1213873,659.36,658.75,0.30360531]
[1748986484806,1.0029236,659.29,658.75,0.30360531]
[1748986485106,1.0029236,659.28,658.75,0.30360531]
[1748986485306,1.00294621,659.27,658.75,0.30360531]
[1748986485507,1.00294621,659.26,658.75,0.30360531]
[1748986488307,1.00294621,659.15,658.75,0.30360531]
[1748986488507,1.12222708,659.38,658.75,0.30360531]
[1748986488709,1.00325757,659.37,658.75,0.30360531]
[1748986488907,1.00325757,659.36,658.75,0.30360531]
[1748986489103,1.48396021,659.51,658.75,0.30360531]
[1748986489409,1.12257887,659.38,658.75,0.30360531]
[1748986489602,1.00299513,659.37,658.75,0.30360531]